{"text_format":"1","workbook":"xlsx","n_sheets":3,"sheets":["Hoja1","Hoja2","Hoja3"],"not_rendered":{"charts":0,"images":0,"macros":0,"external_links":0,"defined_names":0,"comments":0,"pivot_tables":0},"unopened":[],"bounds":{"document_bytes":16777216,"sheet_cells":100000,"rows_first":2000,"rows_last":500,"rows_between":2000,"halvings":0,"cell_chars":16384,"cell_head_chars":4096},"cells_cut":0,"cells_raw":0,"read":"whole","date_system":"1900"}

{"sheet":"Hoja1","index":0,"n_rows":81,"n_cols":10,"rows_kept":81,"cut":false,"hidden":false,"merged":[[3,4,5,4],[2,1,2,6],[0,0,1,1],[3,8,5,8],[3,9,5,9],[3,3,5,3],[3,1,5,1],[3,0,5,0],[3,7,5,7],[3,6,5,6],[3,5,5,5]]}
["           I. MUNICIPALIDAD DE HUALAIHUÉ                                                                     OFICINA DE ORGANIZACIONES COMUNITARIAS                                      "]
[]
["                                                                                                                          ","FONDO DE DESARROLLO VECINAL                                                                                                                                                                        PROYECTOS POSTULADOS CONCURSO 2014"]
["ORGANIZACIÓN POSTULANTE","NOMBRE PROYECTO",null,"CODIGO INTERN","TOTAL  BENEF.","BENEFVULN    ","APORTE                              PROPIO ($)","APORTE TERCER     ($)","SOLICITA FONDEVE   ($)","TOTAL PRESUP.        ($)"]
[null,null,"LOCALIDAD"]
[]
["Junta de Vecinos Cubero de Hualaihue","Pintura Exterior y Combustion Lenta Sede Social Cubero","Cubero","001/ 2014",260,111,166850,null,400000,566850]
["Junta de Vecinos Cerro La Silla","Implementacion de Cocina para Sede Social","Cerro la silla","002/2014",65,20,113000,null,340959,453959]
["Club Deportivo El Valencia","Implementacion Deportiva para el Club","El Varal","003/ 2014",103,38,128800,null,400000,528800]
["Recolectoras de Orilla Remando Juntos","Mujeres Recolectoras         de Orilla","Rolecha","004/ 2014",111,44,89150,null,400000,{"$f":"SUM(G10+I10)","v":489150}]
["Junta de Vecinos Puntilla Uron","Sillas y Mesas para Nuestra Sede Social","Puntilla Uron","005/ 2014",67,30,148400,null,400000,548400]
["Comité de Agua Rolecha","Ayudando a Implementar mi Sede Comunitaria","Rolecha","006/2014",185,75,149140,null,400000,549140]
["Comité Hortaliceras Las Hormiguitas","Agricultoras Comunitarias Trabajando por Nuestra Comunidad.","Rolecha","007/ 2014",95,50,175200,null,400000,575200]
["Junta de Vecinos Quiebra Ola","Cumpliendo el Sueño de tener Nuestra Propia Sede.","Quiebra Ola","008/2014",57,27,123500,null,400000,523500]
["Comité de Agua Rio Cisne","Mejorando la red de Agua Potable para los Vecinos de Rio Cisne","Rio Cisne","009/2014",72,40,98200,null,398500,496700]
["Junta de Vecinos Hualaihue Puerto","Cierre Perimetral Recinto Sede Social para Seguridad del mismo","Hualaihue Puerto","010/2014",131,65,245760,null,400000,645760]
["Junta de Vecinos El Progreso ","Adquisicion de Silla y Mesas para la Sede Social","Chagual","011/2014",92,47,154110,null,400000,554110]
["Taller Laboral Las Rosas","Implementacion de Cocina  ","Chagual","012/2014",92,47,157760,null,400000,557760]
["Comité de Agua Aguas Claras ","Mejorando La Red de Agua Potable.","Punta Nao","13/2014",113,61,136960,null,400000,536960]
["Junta de Vecinos N°8 Rolecha","Equipando Nuestra Sede Social","Rolecha","14/2014",271,111,179500,null,400000,579500]
["Agrupacion de Mujeres Claveles","Apoyo al Emprendimiento de las Socias","Rolecha","15/2014",80,55,119410,null,400000,519410]
["Red de Turismo Cultural y Social Los Laureles","Construccion Cocina y Bodega","Curamin","16/2014",132,58,125200,null,327100,452300]
["Junta de Vecinos La Esperanza","Etapa Final Construccion Estacion Medico Rural","Curamin","17/2014",282,133,260700,null,400000,660700]
["Agrupacion de Feriantes Costumbristas, Artesanos, Cultural y Gastronomica Mar Azul","Mejorando Los Modulos de la Feria","Pichicolo","18/2014",107,67,153000,null,400000,553000]
["Junta de Vecinos Punta Asencio","Combustion Lenta              para Sede Social","Punta Asencio","19/2014",103,60,152000,null,399820,551820]
["Agrupacion de Mujeres Jefas de Hogar Nuevo Renacer","Equipandonos con Tecnologias para Nuevos desafios","Hualaihue Puerto","20/2014",308,150,195840,null,399970,595810]
["Junta de Vecinos N°14 Cholgo","Mejorando Nuestra Sede Social","Cholgo","21/2014",114,51,84600,null,400000,484600]
["Junta de Vecinos N°10 Quildaco Bajo","Equipamiento de Amplificacion Sede Social","Quildaco bajo","22/2014",108,58,95000,null,399990,494990]
["Junta de Vecinos Hornopiren Centro","Acercando los Recursos Tecnologicos a la Junta de Vecinos","Hornopiren","23/2014",228,120,124000,null,399980,523980]
["Centro de Padres y Apoderados Escuela El Varal","Cerco Permitral Escuela El Varal","El Varal","24/2014",134,70,138850,null,400000,538850]
["Junta de Vecinos Carretera Austral","Cierre Perimetral Arreglo Acceso Sede Social","Quildaco Alto","25/2014",54,36,123000,null,400000,523000]
["Junta de Vecinos N°16 Llanchid","Implementacion de Cocina Sede Social","Isla Llanchid","26/2014",45,17,174250,85000,400000,{"$f":"SUM(G32+H32+I32)","v":659250}]
["Recolectoras de Orilla Estero Curamin","Construyendo Nuestra Bodega para guardar Nuestras Herramientas de Trabajo","Curamin","27/2014",105,58,134210,null,400000,{"$f":"SUM(G33+I33)","v":534210}]
["Taller Laboral Renacer","Mejorar Espacio para Aprender y Compartir","Isla Llanchid","28/2014",45,17,88370,null,400000,488370]
["Centro de padres y Apoderados Escuela Candelaria","Mejorando Las Areas Verdes de la Escuela Rural","Isla Llanchid","29/2014",43,29,109660,null,400000,509660]
["Centro de Padres Jardin Ositos Cariñositos","Implementando Deportivamente Nuestros Niños","Lleguiman","30/2014",40,25,176100,null,400000,576100]
["Agrupacion Musical y Cultural Los Primos del Sur","Amplificacion para Nuestro Grupo Musical","Lleguiman","31/2014",34,8,193500,null,400000,593500]
["Agrupacion Cultural y Turistica Nicolas de Tolentino","Restaurando Nuestro Patrimonio Cultural","La Poza","32/2014",210,86,300000,null,400000,700000]
["Comité de Agua Rural La Poza","Reparando el Tranque del Comité de Agua","La Poza","33/2014",164,64,300000,null,400000,700000]
["Junta de Vecinos 15 de Septiembre Purne","Equipando Nuestra Sede Social","Purne","34/2014",101,48,104500,null,400000,504500]
["Junta de Vecinos Chauchil Sur","Construyendo Nuestro Baño y Cocina en Sede Social","Chauchil","35/2014",89,47,127000,null,398820,525820]
["Centro de Padres y Apoderados Jardin Infantil Las Gaviotitas","Implementacion de Material Didactico fungible y no fungible, novedos para los niños del Jardin.","El Manzano","36/2014",69,38,40000,null,400000,440000]
["Club Deportivo Renaciente","Equipamiento Sede Social","Chaqueihua","37/2014",69,22,106000,null,400000,506000]
["Centro de Padres y Apoderados Esc. Rural Aulen","Nuestra Escuela se implementa con recursos materiales para fortalecer la convivencia escolar y mejorar infraestructura","Aulen","38/2014",75,75,40000,null,400000,{"$f":"SUM(G44+I43)","v":440000}]
["Junta de Vecinos Rio Cisne","Adquisicion Maquinarias para realizar deporte","Rio Cisne","39/2014",121,62,147210,null,400000,{"$f":"SUM(G45+I45)","v":547210}]
["Union Comunal de Juntas de Vecinos","Mas Comunicación, Accesibilidad y Difucion de Nuestra Gestion con las Juntas de Vecinos de la Comuna","Hualaihue  ","40/2014",1000,850,100000,null,400000,500000]
["Centro de Padres y Apoderados Esc. Caleta El Manzano","Ampliacion y Mejoramiento de Sala Taller Multiuso Esc. Rural caleta El Manzano","El Manzano","41/2014",122,44,160000,null,399600,559600]
["Junta de Vecinos Villa Los Volcanes","Poblacion Sin Llamas","Hornopiren","42/2014",110,49,242600,null,400000,642600]
["Club Deportivo Femenino Social y Cultural Rolecha","Mejorando Las Condiciones del Gimnacio de Rolecha, donde niños y adultos realizan act. Deportivas y recreativas","Rolecha","43/2014",349,219,80000,null,320000,400000]
["Comité de Salud Puntill Pichicolo","Mejorando Pisos Box Salud Puntilla Pichicolo","Puntilla Pichicolo","44/2014",312,158,154000,null,400000,554000]
["Centro de Padres y Apoderados Escuela Los Halcones","Cambiando el Cerco Perimetral de Nuestra Escuela","Puntilla Pichicolo","45/2014",208,98,417000,null,400000,817000]
["Junta de Vecinos Puntilla Pichicolo","Compra e Isntalacion Combustion Lenta y Mejora Cocina Sede Social","Puntilla Pichicolo","46/2014",222,102,233600,null,400000,633600]
["Junta de Vecinos Puntilla Nao","Arreglo Cocina y Baño de Sede Social","Punta Nao","47/2014",99,45,175682,null,400000,575682]
["Club Adulto Mayor Amor y paz","Mejorando Nuestras Condiciones Sanitarias","Tentelhue","48/2014",65,43,101620,null,400000,501620]
["Deportivo Puma","Implementacion Deportiva Para el Club Deportivo Puma","Rolecha","49/2014",64,42,202700,null,400000,602700]
["Centro de Padres y Apoderados PMI Los Pecesitos","Implementacion para Jardin Los Pecesitos Rolecha","Rolecha","50/2014",80,40,179600,null,400000,579600]
["Agrupacion de Artesanos y Pequeñas Productoras Rurales La Poza","Confeccion y Trabajo en Telares ropa de lana (cuadros)","La Poza","51/2014",71,51,50000,null,400000,450000]
["Club Adulto Mayor San Antonio","Reparacion Sede Social Adulto Mayor San Antonio de Aulen","Aulen","52/2014",182,90,194000,null,400000,594000]
["Centro de Padres y Apoderados Jardin Infantila Los Caracolitos","La Tecnologia al Servicio de la Educacion","Aulen","53/2014",70,27,111480,null,400000,511480]
["Centro de Padres y Apoderados Escuela Pichicolo","Reparacion de Infraestructura Baño Escolar y Mejoramiento","Pichicolo","54/2014",115,65,140000,null,399820,539820]
["Club Deportivo Lago verde","Implementacion Deportiva Club Deportivo Lago Verde","Hornopiren","55/2014",107,39,139780,null,400000,539780]
["Comité de Agua Potable Rural Hornopiren","Cuidando Nuestro Medio Ambiente","Hornopiren","56/2014",117,98,160350,null,400000,560350]
["Centro de Padres y Apoderados Escuela Mañihueico","Implementacion de Juegos Infantiles","Mañihueico","57/2014",98,51,111945,null,400000,511945]
["Junta de Vecinos Los Alamos","Compra de Muebles","Hornopiren","58/2014",406,211,35000,null,351920,386920]
["Liga Costa Rolecha","Amplificacion Liga Costa de Rolecha","Rolecha","59/2014",410,149,94090,null,400000,494090]
["Club Deportivo Alianza de Curamin","Implementacion Sede Club Deportivo Alianza de Curamin","Curamin","60/2014",137,75,128030,null,400000,528030]
["Centro de Padres y Apoderados Sala Cuna J. Infantil Paso a Pasito","Adquisicion Instrumentos Musicales Para Jardin Infantil Paso a Pasitp","Hornopiren","61/2014",66,66,47222,null,350000,397222]
["Club de Boxeo Hualaihue","Implementacion de Material Deportivo- Buzos Deportivos","Hornopiren","62/2014",82,11,41900,null,398400,440300]
["Agrupacion Cultural Sagrada Familia","Equipamiento Salon Parroquial Hornopire","Hornopiren","63/2014",493,198,149940,null,400000,549940]
["Centro de Padres y Apoderados Jardin Infantil Copito de Nieve","Con Seguridad seguimos queriendo y cuidando nuestro Jardin 2014","Hornopiren","64/2014",240,185,74000,null,350000,424000]
["Junta de vecinos Los Ciruelillos","Construccion Punto Limpio para Nuestro sector","Hornopiren","65/2014",289,149,302380,null,400000,702380]
["Centro de Padres y Apoderados Liceo Hornopiren","Ponle Color a tu Lectura","Hornopiren","66/2014",305,0,196000,null,400000,596000]
["Comité de Salud Lleguiman","Adquisicion y Equipamiento Medico para la Estacion. ","Lleguiman","67/2014",229,137,298350,null,400000,698350]
["Club Adulto Mayor Renacer","Equipando Nuestra Sede Social","Manzano","68/2014",19,19,53890,null,400000,453890]
["Club Adulto mayor Esperanza","Construyendo Nuestro Hogar","Curamin","69/2014",25,25,100000,null,400000,500000]
["Club Adulto Mayor Medalla Milagrosa","Reparacion Piso Cocina Sede club Adulto Mayor Medalla Milagrosa","Hornopiren","70/2014",142,40,50000,null,400000,450000]
["Agrupacion Terapeutica de Autoayuda Luz y Esperanza","Taller Recreativo con Trabajos Manuales","Hornopiren","71/2014",57,55,40000,null,400000,440000]
["Junta de Vecinos Mañihueico","Mas Implementación y Seguridad para Nuestra Sede","Mañihueico","72/2014",226,99,84950,null,400000,484950]
["Junta de Vecinos La Poza","Equipando Nuestra Sede Social","La Poza","73/2014",173,73,104900,null,400000,504900]
["Centro de Padres y Apoderados Escuela Cordillera Nevada","Equipamiento de Sala Musica para la Escuela Rural Cordillera Nevada","Chaqueihua","74/2014",38,38,39892,null,359028,398920]
["Comité de Feriantes Contao","Mejor Mobiliario, Mejor Atencion en Feria Costumbrista Contao.-","Contao","75/2014",6270,870,150000,null,400000,550000]

{"sheet":"Hoja2","index":1,"n_rows":0,"n_cols":0,"rows_kept":0,"cut":false,"hidden":false,"merged":[]}

{"sheet":"Hoja3","index":2,"n_rows":0,"n_cols":0,"rows_kept":0,"cut":false,"hidden":false,"merged":[]}